[Event "Titled Tuesday Blitz March 28 Early 2023"]
[White "Costachi, Mihnea"]
[Black "Domingo Nunez, Alejandro"]
[WhiteFideId "1217518"]
[BlackFideId "22245561"]
[WhiteElo "2456"]
[BlackElo "2230"]
[Result "0-1"]
[Round "05"]
[TimeControl "180+2"]
[Date "2023.03.28"]
[WhiteClock "0:00:38"]
[BlackClock "0:00:30"]

1. Nc3 {[%clk 0:03:00]}  g6 {[%clk 0:02:57]} 2. d4 {[%clk 0:02:59]}  Bg7 {[%clk 0:02:58]} 3. e4 {[%clk 0:03:00]}  c6 {[%clk 0:02:58]} 4. Nf3 {[%clk 0:03:00]}  d5 {[%clk 0:02:58]} 5. Be2 {[%clk 0:03:00]}  dxe4 {[%clk 0:02:58]} 6. Nxe4 {[%clk 0:03:00]}  Nf6 {[%clk 0:02:59]} 7. Ng3 {[%clk 0:02:58]}  h5 {[%clk 0:02:51]} 8. h3 {[%clk 0:02:54]}  Na6 {[%clk 0:02:49]} 9. c3 {[%clk 0:02:50]}  Nc7 {[%clk 0:02:49]} 10. Ne5 {[%clk 0:02:48]}  Ncd5 {[%clk 0:02:49]} 11. Bg5 {[%clk 0:02:46]}  h4 {[%clk 0:02:44]} 12. Nf1 {[%clk 0:02:45]}  Ne4 {[%clk 0:02:44]} 13. Be3 {[%clk 0:02:38]}  Bf5 {[%clk 0:01:59]} 14. Qb3 {[%clk 0:02:36]}  Qc7 {[%clk 0:01:53]} 15. Nf3 {[%clk 0:02:26]}  O-O-O {[%clk 0:01:48]} 16. c4 {[%clk 0:02:14]}  Nxe3 {[%clk 0:01:20]} 17. Nxe3 {[%clk 0:02:03]}  Bxd4 {[%clk 0:01:17]} 18. Nxd4 {[%clk 0:02:03]}  Rxd4 {[%clk 0:01:17]} 19. O-O {[%clk 0:01:49]}  Nd2 {[%clk 0:01:17]} 20. Qc3 {[%clk 0:01:49]}  Nxf1 {[%clk 0:01:08]} 21. Bxf1 {[%clk 0:01:49]}  Rhd8 {[%clk 0:01:06]} 22. Nxf5 {[%clk 0:01:49]}  gxf5 {[%clk 0:01:06]} 23. Qf3 {[%clk 0:01:46]}  e6 {[%clk 0:01:06]} 24. Re1 {[%clk 0:01:40]}  Qf4 {[%clk 0:01:05]} 25. Qa3 {[%clk 0:01:37]}  Kb8 {[%clk 0:00:58]} 26. Qe7 {[%clk 0:01:34]}  R4d7 {[%clk 0:00:54]} 27. Qf6 {[%clk 0:01:34]}  Qd4 {[%clk 0:00:54]} 28. Qg5 {[%clk 0:01:32]}  Qd2 {[%clk 0:00:52]} 29. Re3 {[%clk 0:01:31]}  Qc1 {[%clk 0:00:49]} 30. Qf4+ {[%clk 0:01:02]}  Ka8 {[%clk 0:00:49]} 31. Re4 {[%clk 0:00:51]}  Rd1 {[%clk 0:00:48]} 32. Qxc1 {[%clk 0:00:47]}  Rxc1 {[%clk 0:00:49]} 33. Rxh4 {[%clk 0:00:48]}  a5 {[%clk 0:00:49]} 34. Rh7 {[%clk 0:00:44]}  Rdd1 {[%clk 0:00:48]} 35. Rxf7 {[%clk 0:00:44]}  Rxf1+ {[%clk 0:00:49]} 36. Kh2 {[%clk 0:00:45]}  Rxf2 {[%clk 0:00:49]} 37. h4 {[%clk 0:00:45]}  Rxc4 {[%clk 0:00:46]} 38. Kh3 {[%clk 0:00:42]}  Rg4 {[%clk 0:00:42]} 39. h5 {[%clk 0:00:40]}  Rfxg2 {[%clk 0:00:41]} 40. h6 {[%clk 0:00:40]}  R2g3+ {[%clk 0:00:29]} 41. Kh2 {[%clk 0:00:41]}  f4 {[%clk 0:00:29]} 42. Rxf4 {[%clk 0:00:37]}  Rxf4 {[%clk 0:00:28]} 43. Kxg3 {[%clk 0:00:38]}  Rf6 {[%clk 0:00:29]} 44. h7 {[%clk 0:00:38]}  Rh6 {[%clk 0:00:30]} 45. h8=Q+ {[%clk 0:00:38]}  Rxh8 {[%clk 0:00:30]} 0-1


[Site "https://www.chess.com"]

[Event "Titled Tuesday Blitz March 28 Early 2023"]
[White "Salinas Herrera, Pablo"]
[Black "Tokhirjonova, Gulrukhbegim"]
[WhiteFideId "3407128"]
[BlackFideId "14203626"]
[WhiteElo "2550"]
[BlackElo "2268"]
[Result "1-0"]
[Round "05"]
[TimeControl "180+2"]
[Date "2023.03.28"]
[WhiteClock "0:00:13"]
[BlackClock "0:00:08"]

1. d4 {[%clk 0:03:00]}  Nf6 {[%clk 0:02:57]} 2. Nf3 {[%clk 0:03:00]}  g6 {[%clk 0:02:53]} 3. Nbd2 {[%clk 0:02:59]}  d5 {[%clk 0:02:53]} 4. e3 {[%clk 0:02:59]}  Bg7 {[%clk 0:02:53]} 5. b4 {[%clk 0:03:00]}  Bf5 {[%clk 0:02:53]} 6. c4 {[%clk 0:03:00]}  dxc4 {[%clk 0:02:52]} 7. Bxc4 {[%clk 0:03:00]}  O-O {[%clk 0:02:53]} 8. O-O {[%clk 0:03:00]}  c6 {[%clk 0:02:53]} 9. a4 {[%clk 0:03:00]}  a5 {[%clk 0:02:53]} 10. b5 {[%clk 0:03:00]}  Nbd7 {[%clk 0:02:52]} 11. Bb2 {[%clk 0:03:00]}  Nb6 {[%clk 0:02:50]} 12. Be2 {[%clk 0:03:00]}  Rc8 {[%clk 0:02:47]} 13. Qb3 {[%clk 0:02:59]}  Be6 {[%clk 0:02:45]} 14. Qa3 {[%clk 0:02:53]}  Nbd5 {[%clk 0:02:41]} 15. Rac1 {[%clk 0:02:48]}  Nb4 {[%clk 0:02:41]} 16. Nc4 {[%clk 0:02:36]}  cxb5 {[%clk 0:02:39]} 17. axb5 {[%clk 0:02:37]}  b6 {[%clk 0:02:36]} 18. Nfe5 {[%clk 0:02:28]}  Nfd5 {[%clk 0:02:34]} 19. Rfd1 {[%clk 0:02:23]}  f6 {[%clk 0:02:07]} 20. Nf3 {[%clk 0:02:20]}  Bh6 {[%clk 0:02:02]} 21. Bf1 {[%clk 0:02:19]}  Bd7 {[%clk 0:01:57]} 22. Qb3 {[%clk 0:02:12]}  Bxb5 {[%clk 0:01:49]} 23. Ba3 {[%clk 0:01:10]}  e6 {[%clk 0:01:27]} 24. Nfd2 {[%clk 0:00:58]}  Qd7 {[%clk 0:01:23]} 25. Re1 {[%clk 0:00:47]}  Ba4 {[%clk 0:01:20]} 26. Qb2 {[%clk 0:00:47]}  Rc6 {[%clk 0:01:04]} 27. e4 {[%clk 0:00:46]}  Nf4 {[%clk 0:01:03]} 28. Bxb4 {[%clk 0:00:45]}  axb4 {[%clk 0:01:02]} 29. Qxb4 {[%clk 0:00:46]}  b5 {[%clk 0:00:56]} 30. Ne3 {[%clk 0:00:42]}  Rxc1 {[%clk 0:00:39]} 31. Rxc1 {[%clk 0:00:43]}  Rd8 {[%clk 0:00:38]} 32. g3 {[%clk 0:00:36]}  Qxd4 {[%clk 0:00:23]} 33. Qxd4 {[%clk 0:00:36]}  Rxd4 {[%clk 0:00:24]} 34. Nf3 {[%clk 0:00:37]}  Rxe4 {[%clk 0:00:22]} 35. gxf4 {[%clk 0:00:37]}  Bxf4 {[%clk 0:00:22]} 36. Rc8+ {[%clk 0:00:32]}  Kg7 {[%clk 0:00:22]} 37. Nc2 {[%clk 0:00:22]}  h5 {[%clk 0:00:20]} 38. Ncd4 {[%clk 0:00:20]}  Bd6 {[%clk 0:00:13]} 39. Nxb5 {[%clk 0:00:15]}  Bxb5 {[%clk 0:00:11]} 40. Bxb5 {[%clk 0:00:16]}  Rg4+ {[%clk 0:00:10]} 41. Kf1 {[%clk 0:00:16]}  Rf4 {[%clk 0:00:10]} 42. Be2 {[%clk 0:00:16]}  g5 {[%clk 0:00:10]} 43. Rc6 {[%clk 0:00:14]}  Bb8 {[%clk 0:00:07]} 44. Rxe6 {[%clk 0:00:14]}  Rb4 {[%clk 0:00:08]} 45. h3 {[%clk 0:00:13]}  Kg6 {[%clk 0:00:07]} 46. Bd3+ {[%clk 0:00:12]}  Kf7 {[%clk 0:00:07]} 47. Rc6 {[%clk 0:00:12]}  Bf4 {[%clk 0:00:07]} 48. Bc4+ {[%clk 0:00:11]}  Kg7 {[%clk 0:00:07]} 49. Nd4 {[%clk 0:00:11]}  g4 {[%clk 0:00:07]} 50. hxg4 {[%clk 0:00:12]}  hxg4 {[%clk 0:00:07]} 51. Ne6+ {[%clk 0:00:12]}  Kg6 {[%clk 0:00:07]} 52. Nxf4+ {[%clk 0:00:13]}  Kf5 {[%clk 0:00:08]} 53. Nd3 {[%clk 0:00:13]}  Rb1+ {[%clk 0:00:08]} 54. Kg2 {[%clk 0:00:14]}  Kg5 {[%clk 0:00:08]} 55. Bd5 {[%clk 0:00:14]}  f5 {[%clk 0:00:09]} 56. Rc4 {[%clk 0:00:13]}  f4 {[%clk 0:00:10]} 57. Nxf4 {[%clk 0:00:14]}  Rd1 {[%clk 0:00:10]} 58. Ne6+ {[%clk 0:00:13]}  Kf6 {[%clk 0:00:08]} 59. Rc5 {[%clk 0:00:13]} 1-0


[Site "https://www.chess.com"]

[Event "Titled Tuesday Blitz March 28 Early 2023"]
[White "Martic, Ivan"]
[Black "Chigaev, Maksim"]
[WhiteFideId "929301"]
[BlackFideId "4108116"]
[WhiteElo "2360"]
[BlackElo "2547"]
[Result "0-1"]
[Round "05"]
[TimeControl "180+2"]
[Date "2023.03.28"]
[WhiteClock "0:00:13"]
[BlackClock "0:00:10"]

1. d4 {[%clk 0:03:00]}  Nf6 {[%clk 0:02:59]} 2. Bg5 {[%clk 0:03:00]}  g6 {[%clk 0:02:59]} 3. Bxf6 {[%clk 0:03:00]}  exf6 {[%clk 0:02:59]} 4. e3 {[%clk 0:03:01]}  d5 {[%clk 0:03:00]} 5. g3 {[%clk 0:02:57]}  h5 {[%clk 0:02:57]} 6. h4 {[%clk 0:02:57]}  c6 {[%clk 0:02:51]} 7. Nd2 {[%clk 0:02:50]}  Bd6 {[%clk 0:02:46]} 8. Bg2 {[%clk 0:02:47]}  Bg4 {[%clk 0:02:45]} 9. Qc1 {[%clk 0:02:45]}  Nd7 {[%clk 0:02:44]} 10. c4 {[%clk 0:02:45]}  dxc4 {[%clk 0:02:43]} 11. Qxc4 {[%clk 0:02:43]}  Qe7 {[%clk 0:02:34]} 12. Ngf3 {[%clk 0:02:33]}  O-O {[%clk 0:02:28]} 13. O-O {[%clk 0:02:32]}  Nb6 {[%clk 0:02:26]} 14. Qb3 {[%clk 0:02:29]}  Be6 {[%clk 0:02:23]} 15. Qd3 {[%clk 0:02:23]}  f5 {[%clk 0:02:22]} 16. a3 {[%clk 0:02:17]}  Bd5 {[%clk 0:02:13]} 17. Ng5 {[%clk 0:02:13]}  Rad8 {[%clk 0:02:03]} 18. Bxd5 {[%clk 0:02:10]}  cxd5 {[%clk 0:01:58]} 19. Rac1 {[%clk 0:02:07]}  Nd7 {[%clk 0:01:51]} 20. Rc2 {[%clk 0:01:55]}  Nf6 {[%clk 0:01:51]} 21. Rfc1 {[%clk 0:01:54]}  Ne4 {[%clk 0:01:21]} 22. Ndf3 {[%clk 0:01:53]}  Kg7 {[%clk 0:01:10]} 23. Kg2 {[%clk 0:01:49]}  Rfe8 {[%clk 0:01:10]} 24. Qb3 {[%clk 0:01:47]}  Bb8 {[%clk 0:01:02]} 25. Nh3 {[%clk 0:01:37]}  Nf6 {[%clk 0:00:40]} 26. Ne1 {[%clk 0:01:27]}  Rd6 {[%clk 0:00:35]} 27. Qd3 {[%clk 0:01:14]}  Re6 {[%clk 0:00:31]} 28. Rc8 {[%clk 0:01:12]}  Bd6 {[%clk 0:00:30]} 29. Rxe8 {[%clk 0:01:10]}  Qxe8 {[%clk 0:00:30]} 30. Qb3 {[%clk 0:01:09]}  Re7 {[%clk 0:00:26]} 31. Nd3 {[%clk 0:01:05]}  Rxe3 {[%clk 0:00:21]} 32. fxe3 {[%clk 0:01:04]}  Qxe3 {[%clk 0:00:22]} 33. Nhf4 {[%clk 0:00:59]}  Ne4 {[%clk 0:00:17]} 34. Qc2 {[%clk 0:00:15]}  Qxg3+ {[%clk 0:00:17]} 35. Kf1 {[%clk 0:00:15]}  Bxf4 {[%clk 0:00:15]} 36. Nxf4 {[%clk 0:00:14]}  Qxf4+ {[%clk 0:00:16]} 37. Ke1 {[%clk 0:00:14]}  Qe3+ {[%clk 0:00:13]} 38. Kf1 {[%clk 0:00:13]}  Qf4+ {[%clk 0:00:11]} 39. Ke1 {[%clk 0:00:13]}  Qxh4+ {[%clk 0:00:11]} 40. Kf1 {[%clk 0:00:12]}  Qh1+ {[%clk 0:00:10]} 41. Ke2 {[%clk 0:00:12]}  Qg2+ {[%clk 0:00:10]} 42. Ke3 {[%clk 0:00:12]}  Qg3+ {[%clk 0:00:11]} 43. Ke2 {[%clk 0:00:12]}  Qf2+ {[%clk 0:00:11]} 44. Kd3 {[%clk 0:00:13]}  Qf3# {[%clk 0:00:10]} 0-1


[Site "https://www.chess.com"]

[Event "Titled Tuesday Blitz March 28 Early 2023"]
[White "Kovalev, Vladislav"]
[Black "Castellanos Villela, Alejandro"]
[WhiteFideId "13504398"]
[BlackFideId "3446379"]
[WhiteElo "2555"]
[BlackElo "2102"]
[Result "1-0"]
[Round "05"]
[TimeControl "180+2"]
[Date "2023.03.28"]
[WhiteClock "0:00:07"]
[BlackClock "0:00:02"]

1. e4 {[%clk 0:03:00]}  c5 {[%clk 0:02:59]} 2. Nf3 {[%clk 0:03:00]}  d6 {[%clk 0:02:58]} 3. d4 {[%clk 0:03:01]}  cxd4 {[%clk 0:02:59]} 4. Nxd4 {[%clk 0:03:01]}  Nf6 {[%clk 0:03:00]} 5. Nc3 {[%clk 0:03:02]}  a6 {[%clk 0:03:01]} 6. Rg1 {[%clk 0:03:02]}  e5 {[%clk 0:03:00]} 7. Nb3 {[%clk 0:03:03]}  Be6 {[%clk 0:03:00]} 8. g4 {[%clk 0:03:03]}  h6 {[%clk 0:03:00]} 9. h4 {[%clk 0:03:03]}  d5 {[%clk 0:03:01]} 10. exd5 {[%clk 0:03:00]}  Nxd5 {[%clk 0:03:01]} 11. Nxd5 {[%clk 0:03:00]}  Bxd5 {[%clk 0:03:01]} 12. Be3 {[%clk 0:02:36]}  Be7 {[%clk 0:02:59]} 13. g5 {[%clk 0:02:36]}  hxg5 {[%clk 0:02:58]} 14. hxg5 {[%clk 0:02:36]}  Nc6 {[%clk 0:02:58]} 15. g6 {[%clk 0:02:18]}  f5 {[%clk 0:02:50]} 16. c3 {[%clk 0:02:12]}  f4 {[%clk 0:02:40]} 17. Bc5 {[%clk 0:02:11]}  Bxb3 {[%clk 0:02:38]} 18. Qxb3 {[%clk 0:02:05]}  Rf8 {[%clk 0:02:32]} 19. Qxb7 {[%clk 0:01:37]}  Na5 {[%clk 0:02:05]} 20. Qb4 {[%clk 0:01:20]}  Nc6 {[%clk 0:01:53]} 21. Qa4 {[%clk 0:01:06]}  Qd7 {[%clk 0:01:53]} 22. Rd1 {[%clk 0:00:58]}  Qb7 {[%clk 0:01:45]} 23. Bxe7 {[%clk 0:00:30]}  Kxe7 {[%clk 0:01:44]} 24. Qa3+ {[%clk 0:00:31]}  Ke8 {[%clk 0:01:38]} 25. Bc4 {[%clk 0:00:20]}  Ne7 {[%clk 0:01:09]} 26. Bf7+ {[%clk 0:00:16]}  Rxf7 {[%clk 0:01:09]} 27. gxf7+ {[%clk 0:00:17]}  Kxf7 {[%clk 0:01:10]} 28. Qb3+ {[%clk 0:00:10]}  Qxb3 {[%clk 0:01:08]} 29. axb3 {[%clk 0:00:11]}  a5 {[%clk 0:01:05]} 30. Kd2 {[%clk 0:00:07]}  Rh8 {[%clk 0:00:52]} 31. Kc2 {[%clk 0:00:07]}  Rh2 {[%clk 0:00:51]} 32. Rd2 {[%clk 0:00:07]}  Kf6 {[%clk 0:00:47]} 33. Ra1 {[%clk 0:00:06]}  e4 {[%clk 0:00:36]} 34. Rxa5 {[%clk 0:00:05]}  Nf5 {[%clk 0:00:35]} 35. Ra4 {[%clk 0:00:04]}  Ke5 {[%clk 0:00:27]} 36. b4 {[%clk 0:00:04]}  g5 {[%clk 0:00:24]} 37. Ra5+ {[%clk 0:00:04]}  Kf6 {[%clk 0:00:23]} 38. b5 {[%clk 0:00:05]}  e3 {[%clk 0:00:17]} 39. Ra6+ {[%clk 0:00:05]}  Ke5 {[%clk 0:00:16]} 40. fxe3 {[%clk 0:00:06]}  Nxe3+ {[%clk 0:00:16]} 41. Kd3 {[%clk 0:00:07]}  Rh8 {[%clk 0:00:16]} 42. b6 {[%clk 0:00:06]}  g4 {[%clk 0:00:11]} 43. Ra5+ {[%clk 0:00:07]}  Kf6 {[%clk 0:00:11]} 44. Rb5 {[%clk 0:00:06]}  g3 {[%clk 0:00:07]} 45. b7 {[%clk 0:00:06]}  Rb8 {[%clk 0:00:08]} 46. Ke4 {[%clk 0:00:06]}  g2 {[%clk 0:00:08]} 47. Rxg2 {[%clk 0:00:03]}  Nxg2 {[%clk 0:00:09]} 48. Kf3 {[%clk 0:00:03]}  Nh4+ {[%clk 0:00:08]} 49. Kxf4 {[%clk 0:00:03]}  Ng6+ {[%clk 0:00:09]} 50. Ke4 {[%clk 0:00:04]}  Ne7 {[%clk 0:00:09]} 51. Kd4 {[%clk 0:00:04]}  Ke6 {[%clk 0:00:10]} 52. Kc5 {[%clk 0:00:05]}  Kd7 {[%clk 0:00:10]} 53. Kb6 {[%clk 0:00:05]}  Kd6 {[%clk 0:00:09]} 54. c4 {[%clk 0:00:05]}  Kd7 {[%clk 0:00:08]} 55. b4 {[%clk 0:00:05]}  Kd6 {[%clk 0:00:08]} 56. Rh5 {[%clk 0:00:05]}  Kd7 {[%clk 0:00:08]} 57. c5 {[%clk 0:00:05]}  Rf8 {[%clk 0:00:05]} 58. b5 {[%clk 0:00:06]}  Rb8 {[%clk 0:00:02]} 59. c6+ {[%clk 0:00:06]}  Kd6 {[%clk 0:00:03]} 60. Rh6+ {[%clk 0:00:06]}  Kd5 {[%clk 0:00:01]} 61. c7 {[%clk 0:00:06]}  Nc8+ {[%clk 0:00:02]} 62. Ka6 {[%clk 0:00:06]}  Rxb7 {[%clk 0:00:02]} 63. Kxb7 {[%clk 0:00:07]} 1-0


[Site "https://www.chess.com"]

[Event "Titled Tuesday Blitz March 28 Early 2023"]
[White "Nurmanova, Alua"]
[Black "Pakleza, Zbigniew"]
[WhiteFideId "13729390"]
[BlackFideId "1119290"]
[WhiteElo "2253"]
[BlackElo "2410"]
[Result "1-0"]
[Round "05"]
[TimeControl "180+2"]
[Date "2023.03.28"]
[WhiteClock "0:00:10"]
[BlackClock "0:00:03"]

1. e4 {[%clk 0:03:00]}  d6 {[%clk 0:02:59]} 2. d4 {[%clk 0:03:00]}  Nf6 {[%clk 0:02:59]} 3. Nc3 {[%clk 0:02:59]}  c6 {[%clk 0:02:59]} 4. Nf3 {[%clk 0:02:52]}  Bg4 {[%clk 0:02:58]} 5. h3 {[%clk 0:02:52]}  Bh5 {[%clk 0:02:59]} 6. a4 {[%clk 0:02:48]}  e6 {[%clk 0:02:58]} 7. Be2 {[%clk 0:02:47]}  d5 {[%clk 0:02:57]} 8. Bg5 {[%clk 0:02:42]}  Be7 {[%clk 0:02:56]} 9. e5 {[%clk 0:02:38]}  Nfd7 {[%clk 0:02:56]} 10. Bxe7 {[%clk 0:02:32]}  Qxe7 {[%clk 0:02:57]} 11. O-O {[%clk 0:02:32]}  O-O {[%clk 0:02:57]} 12. Qd2 {[%clk 0:02:30]}  a6 {[%clk 0:02:49]} 13. a5 {[%clk 0:02:30]}  c5 {[%clk 0:02:48]} 14. dxc5 {[%clk 0:02:13]}  Nc6 {[%clk 0:02:45]} 15. Na4 {[%clk 0:02:11]}  Nxc5 {[%clk 0:02:41]} 16. Nxc5 {[%clk 0:01:47]}  Qxc5 {[%clk 0:02:42]} 17. Rfe1 {[%clk 0:01:46]}  Rac8 {[%clk 0:02:06]} 18. c3 {[%clk 0:01:43]}  Bxf3 {[%clk 0:02:03]} 19. Bxf3 {[%clk 0:01:43]}  Nxa5 {[%clk 0:01:55]} 20. Qg5 {[%clk 0:01:28]}  Nc4 {[%clk 0:01:50]} 21. Ra4 {[%clk 0:01:08]}  h6 {[%clk 0:00:45]} 22. Qg3 {[%clk 0:01:08]}  b5 {[%clk 0:00:39]} 23. Rxa6 {[%clk 0:01:05]}  Nxb2 {[%clk 0:00:36]} 24. Re3 {[%clk 0:00:58]}  Na4 {[%clk 0:00:22]} 25. Be2 {[%clk 0:00:46]}  Nxc3 {[%clk 0:00:22]} 26. Bd3 {[%clk 0:00:46]}  d4 {[%clk 0:00:17]} 27. Rf3 {[%clk 0:00:43]}  Ra8 {[%clk 0:00:12]} 28. Rxa8 {[%clk 0:00:32]}  Rxa8 {[%clk 0:00:13]} 29. Qf4 {[%clk 0:00:33]}  Ra7 {[%clk 0:00:10]} 30. Rg3 {[%clk 0:00:32]}  Kf8 {[%clk 0:00:08]} 31. Kh2 {[%clk 0:00:22]}  b4 {[%clk 0:00:08]} 32. Qh4 {[%clk 0:00:20]}  Qe7 {[%clk 0:00:07]} 33. Qh5 {[%clk 0:00:21]}  b3 {[%clk 0:00:06]} 34. Qg4 {[%clk 0:00:21]}  Ke8 {[%clk 0:00:04]} 35. Qxd4 {[%clk 0:00:21]}  Rc7 {[%clk 0:00:03]} 36. Qb6 {[%clk 0:00:18]}  Qc5 {[%clk 0:00:03]} 37. Qb8+ {[%clk 0:00:18]}  Rc8 {[%clk 0:00:03]} 38. Qxb3 {[%clk 0:00:18]}  Nd5 {[%clk 0:00:04]} 39. Qa4+ {[%clk 0:00:18]}  Kf8 {[%clk 0:00:04]} 40. Qg4 {[%clk 0:00:18]}  g6 {[%clk 0:00:03]} 41. Qh4 {[%clk 0:00:17]}  Qxf2 {[%clk 0:00:02]} 42. Qxh6+ {[%clk 0:00:17]}  Ke7 {[%clk 0:00:03]} 43. Qg5+ {[%clk 0:00:17]}  Kd7 {[%clk 0:00:03]} 44. Bb5+ {[%clk 0:00:17]}  Kc7 {[%clk 0:00:03]} 45. Rf3 {[%clk 0:00:18]}  Qc5 {[%clk 0:00:03]} 46. Rxf7+ {[%clk 0:00:18]}  Kb6 {[%clk 0:00:04]} 47. Bd7 {[%clk 0:00:17]}  Rc7 {[%clk 0:00:02]} 48. Bxe6 {[%clk 0:00:17]}  Ne3 {[%clk 0:00:02]} 49. Rxc7 {[%clk 0:00:15]}  Kxc7 {[%clk 0:00:03]} 50. Qf4 {[%clk 0:00:13]}  g5 {[%clk 0:00:01]} 51. Qxg5 {[%clk 0:00:10]}  Nf1+ {[%clk 0:00:01]} 52. Kh1 {[%clk 0:00:11]}  Qf2 {[%clk 0:00:02]} 53. Qe7+ {[%clk 0:00:10]}  Kb6 {[%clk 0:00:02]} 54. Qd6+ {[%clk 0:00:11]}  Kb5 {[%clk 0:00:02]} 55. Bd7+ {[%clk 0:00:11]}  Kc4 {[%clk 0:00:03]} 56. Qa6+ {[%clk 0:00:11]}  Kc3 {[%clk 0:00:03]} 57. Qa3+ {[%clk 0:00:09]}  Kd4 {[%clk 0:00:03]} 58. Qa7+ {[%clk 0:00:09]}  Kxe5 {[%clk 0:00:03]} 59. Qxf2 {[%clk 0:00:10]} 1-0


[Site "https://www.chess.com"]

[Event "Titled Tuesday Blitz March 28 Early 2023"]
[White "Urazayev, Arystanbek"]
[Black "Belov, Alexei"]
[WhiteFideId "13709810"]
[BlackFideId "4128206"]
[WhiteElo "2479"]
[BlackElo "2551"]
[Result "0-1"]
[Round "05"]
[TimeControl "180+2"]
[Date "2023.03.28"]
[WhiteClock "0:00:58"]
[BlackClock "0:00:21"]

1. d4 {[%clk 0:03:00]}  e6 {[%clk 0:03:00]} 2. c4 {[%clk 0:03:01]}  d5 {[%clk 0:03:00]} 3. Nf3 {[%clk 0:03:01]}  Nf6 {[%clk 0:03:00]} 4. Nc3 {[%clk 0:03:02]}  Be7 {[%clk 0:03:00]} 5. cxd5 {[%clk 0:03:01]}  exd5 {[%clk 0:03:00]} 6. Bf4 {[%clk 0:03:02]}  c6 {[%clk 0:03:00]} 7. h3 {[%clk 0:03:03]}  Bf5 {[%clk 0:03:00]} 8. e3 {[%clk 0:03:03]}  Nbd7 {[%clk 0:02:59]} 9. g4 {[%clk 0:03:04]}  Bg6 {[%clk 0:02:55]} 10. Ne5 {[%clk 0:03:04]}  Nxe5 {[%clk 0:02:47]} 11. Bxe5 {[%clk 0:03:04]}  O-O {[%clk 0:02:35]} 12. Bg2 {[%clk 0:03:04]}  Ne4 {[%clk 0:02:25]} 13. Nxe4 {[%clk 0:02:59]}  Bxe4 {[%clk 0:02:25]} 14. Bxe4 {[%clk 0:02:55]}  dxe4 {[%clk 0:02:25]} 15. Qb3 {[%clk 0:02:54]}  Bd6 {[%clk 0:02:10]} 16. Bxd6 {[%clk 0:02:39]}  Qxd6 {[%clk 0:02:09]} 17. O-O-O {[%clk 0:02:40]}  a5 {[%clk 0:01:59]} 18. a3 {[%clk 0:02:28]}  a4 {[%clk 0:01:57]} 19. Qc4 {[%clk 0:02:25]}  Rfd8 {[%clk 0:01:45]} 20. Kb1 {[%clk 0:02:21]}  b5 {[%clk 0:01:33]} 21. Qc5 {[%clk 0:02:17]}  Qxc5 {[%clk 0:01:26]} 22. dxc5 {[%clk 0:02:18]}  Kf8 {[%clk 0:01:26]} 23. Kc2 {[%clk 0:02:14]}  Ke7 {[%clk 0:01:24]} 24. Kc3 {[%clk 0:02:12]}  Ke6 {[%clk 0:01:23]} 25. Rd4 {[%clk 0:01:58]}  Rxd4 {[%clk 0:01:12]} 26. Kxd4 {[%clk 0:01:59]}  f5 {[%clk 0:01:12]} 27. gxf5+ {[%clk 0:01:48]}  Kxf5 {[%clk 0:01:12]} 28. Kc3 {[%clk 0:01:45]}  Rd8 {[%clk 0:01:12]} 29. Rg1 {[%clk 0:01:34]}  g5 {[%clk 0:01:12]} 30. Kb4 {[%clk 0:01:29]}  Rd5 {[%clk 0:00:59]} 31. Rc1 {[%clk 0:01:28]}  g4 {[%clk 0:00:41]} 32. h4 {[%clk 0:01:21]}  Rd2 {[%clk 0:00:30]} 33. Ka5 {[%clk 0:01:21]}  Rxf2 {[%clk 0:00:25]} 34. Kb6 {[%clk 0:01:21]}  g3 {[%clk 0:00:25]} 35. Kxc6 {[%clk 0:01:18]}  g2 {[%clk 0:00:25]} 36. Rg1 {[%clk 0:01:12]}  Rxb2 {[%clk 0:00:22]} 37. Rd1 {[%clk 0:01:09]}  Kg4 {[%clk 0:00:20]} 38. Rd7 {[%clk 0:01:02]}  Kh3 {[%clk 0:00:20]} 39. Rg7 {[%clk 0:00:58]}  Kh2 {[%clk 0:00:21]} 0-1


[Site "https://www.chess.com"]

[Event "Titled Tuesday Blitz March 28 Early 2023"]
[White "Ohanyan, Emin"]
[Black "Rangel, Daniel"]
[WhiteFideId "13312022"]
[BlackFideId "2124475"]
[WhiteElo "2402"]
[BlackElo "2256"]
[Result "1-0"]
[Round "05"]
[TimeControl "180+2"]
[Date "2023.03.28"]
[WhiteClock "0:00:18"]
[BlackClock "0:00:03"]

1. e4 {[%clk 0:02:57]}  c5 {[%clk 0:02:56]} 2. Nf3 {[%clk 0:02:56]}  g6 {[%clk 0:02:56]} 3. d4 {[%clk 0:02:55]}  cxd4 {[%clk 0:02:56]} 4. Nxd4 {[%clk 0:02:56]}  Bg7 {[%clk 0:02:55]} 5. Nc3 {[%clk 0:02:57]}  Nc6 {[%clk 0:02:55]} 6. Be3 {[%clk 0:02:57]}  Nf6 {[%clk 0:02:55]} 7. Nxc6 {[%clk 0:02:57]}  bxc6 {[%clk 0:02:54]} 8. e5 {[%clk 0:02:58]}  Ng8 {[%clk 0:02:54]} 9. Bd4 {[%clk 0:02:58]}  Nh6 {[%clk 0:02:54]} 10. e6 {[%clk 0:02:57]}  O-O {[%clk 0:02:45]} 11. Bxg7 {[%clk 0:02:57]}  Kxg7 {[%clk 0:02:45]} 12. Qd4+ {[%clk 0:02:58]}  f6 {[%clk 0:02:42]} 13. exd7 {[%clk 0:02:58]}  Qxd7 {[%clk 0:02:40]} 14. Qxd7 {[%clk 0:02:58]}  Bxd7 {[%clk 0:02:41]} 15. O-O-O {[%clk 0:02:59]}  Be6 {[%clk 0:02:36]} 16. Ba6 {[%clk 0:02:57]}  Rad8 {[%clk 0:02:30]} 17. Rxd8 {[%clk 0:02:47]}  Rxd8 {[%clk 0:02:30]} 18. Re1 {[%clk 0:02:48]}  Kf7 {[%clk 0:02:21]} 19. Na4 {[%clk 0:02:48]}  Bc8 {[%clk 0:02:14]} 20. Bc4+ {[%clk 0:02:45]}  Kf8 {[%clk 0:02:11]} 21. Nc5 {[%clk 0:02:45]}  e5 {[%clk 0:02:01]} 22. h3 {[%clk 0:02:41]}  Nf5 {[%clk 0:01:58]} 23. b4 {[%clk 0:02:36]}  Rd4 {[%clk 0:01:50]} 24. Be6 {[%clk 0:02:37]}  Rd8 {[%clk 0:01:39]} 25. Bxc8 {[%clk 0:02:37]}  Rxc8 {[%clk 0:01:40]} 26. Rd1 {[%clk 0:02:37]}  Re8 {[%clk 0:01:16]} 27. c3 {[%clk 0:02:26]}  h5 {[%clk 0:00:59]} 28. g4 {[%clk 0:02:22]}  hxg4 {[%clk 0:00:59]} 29. hxg4 {[%clk 0:02:23]}  Nh6 {[%clk 0:00:59]} 30. g5 {[%clk 0:02:24]}  fxg5 {[%clk 0:00:56]} 31. Rd6 {[%clk 0:02:23]}  Ng4 {[%clk 0:00:36]} 32. Ne4 {[%clk 0:02:20]}  Kg7 {[%clk 0:00:27]} 33. Rxc6 {[%clk 0:02:19]}  Rf8 {[%clk 0:00:27]} 34. Rc7+ {[%clk 0:01:40]}  Kh6 {[%clk 0:00:26]} 35. Rxa7 {[%clk 0:01:41]}  Nxf2 {[%clk 0:00:25]} 36. Ng3 {[%clk 0:00:45]}  g4 {[%clk 0:00:22]} 37. b5 {[%clk 0:00:44]}  Rf3 {[%clk 0:00:21]} 38. Ne2 {[%clk 0:00:45]}  g3 {[%clk 0:00:21]} 39. b6 {[%clk 0:00:44]}  g2 {[%clk 0:00:19]} 40. b7 {[%clk 0:00:44]}  Nd3+ {[%clk 0:00:16]} 41. Kd2 {[%clk 0:00:41]}  Rf2 {[%clk 0:00:10]} 42. b8=Q {[%clk 0:00:34]}  g1=Q {[%clk 0:00:09]} 43. Qh8+ {[%clk 0:00:24]}  Kg5 {[%clk 0:00:09]} 44. Qd8+ {[%clk 0:00:24]}  Kg4 {[%clk 0:00:07]} 45. Qxd3 {[%clk 0:00:21]}  Qa1 {[%clk 0:00:03]} 46. Qg3+ {[%clk 0:00:18]}  Kh5 {[%clk 0:00:03]} 47. Rh7# {[%clk 0:00:18]} 1-0


[Site "https://www.chess.com"]